fUSD/lending_fUSD_20251227
["ID","MTS","AMOUNT","RATE_DAILY","PERIOD"]
[399878949,1766799051545,-659.71,0.00024795,2]
[399878950,1766799051557,-159.4,0.00024795,2]
[399878951,1766799051568,-170.82,0.00024795,2]
[399878952,1766799051579,-659.71,0.00024795,2]
[399878953,1766799051590,-170.82,0.00024795,2]
[399878954,1766799051602,-659.71,0.00024795,2]
[399878955,1766799051613,-659.71,0.00024795,2]
[399878956,1766799051624,-170.82,0.00024795,2]
[399878957,1766799051635,-659.71,0.00024795,2]
[399878958,1766799051646,-170.82,0.00024795,2]
[399878959,1766799051657,-554.37,0.00024795,2]
[399878960,1766799051668,-554.37,0.00024795,2]
[399878962,1766799051679,-170.82,0.00024795,2]
[399878963,1766799051689,-659.71,0.00024795,2]
[399878964,1766799051700,-170.82,0.00024795,2]
[399878965,1766799051711,-554.37,0.00024795,2]
[399878966,1766799051722,-554.37,0.00024795,2]
[399878967,1766799051733,-659.71,0.00024795,2]
[399878968,1766799051744,-170.82,0.00024795,2]
[399878969,1766799051754,-170.82,0.00024795,2]
[399878970,1766799051766,-659.71,0.00024795,2]
[399878971,1766799051776,-554.37,0.00024795,2]
[399878972,1766799051787,-554.37,0.00024795,2]
[399878973,1766799051798,-170.82,0.00024795,2]
[399878974,1766799051812,-170.82,0.00024795,2]
[399878975,1766799051822,-659.71,0.00024795,2]
[399878976,1766799051833,-659.71,0.00024795,2]
[399878977,1766799051844,-554.37,0.00024795,2]
[399878978,1766799051855,-554.37,0.00024795,2]
[399878979,1766799051866,-554.37,0.00024795,2]
[399878980,1766799051876,-659.71,0.00024795,2]
[399878981,1766799051887,-170.82,0.00024795,2]
[399878982,1766799051898,-659.71,0.00024795,2]
[399878983,1766799051909,-170.82,0.00024795,2]
[399878984,1766799051923,-554.37,0.00024795,2]
[399878986,1766799051934,-554.37,0.00024795,2]
[399878987,1766799051945,-170.82,0.00024795,2]
[399878988,1766799051955,-659.71,0.00024795,2]
[399878989,1766799051965,-659.71,0.00024795,2]
[399878990,1766799051976,-554.37,0.00024795,2]
[399878991,1766799051987,-170.82,0.00024795,2]
[399878992,1766799051997,-554.37,0.00024795,2]
[399878993,1766799052009,-659.71,0.00024795,2]
[399878994,1766799052020,-170.82,0.00024795,2]
[399878995,1766799052032,-554.37,0.00024795,2]
[399878996,1766799052042,-554.37,0.00024795,2]
[399878997,1766799052054,-659.71,0.00024795,2]
[399878998,1766799052065,-170.82,0.00024795,2]
[399878999,1766799052076,-170.82,0.00024795,2]
[399879000,1766799052087,-554.37,0.00024795,2]
[399879001,1766799052098,-659.71,0.00024795,2]
[399879002,1766799052109,-659.71,0.00024795,2]
[399879003,1766799052119,-554.37,0.00024795,2]
[399879004,1766799052129,-170.82,0.00024795,2]
[399879005,1766799052140,-554.37,0.00024795,2]
[399879006,1766799052151,-170.82,0.00024795,2]
[399879007,1766799052161,-659.71,0.00024795,2]
[399879008,1766799052172,-554.37,0.00024795,2]
[399879009,1766799052183,-554.37,0.00024795,2]
[399879010,1766799052193,-659.71,0.00024795,2]
[399879011,1766799052204,-170.82,0.00024795,2]
[399879012,1766799052215,-170.82,0.00024795,2]
[399879013,1766799052225,-659.71,0.00024795,2]
[399879014,1766799052236,-576.39,0.00024795,2]
[399879015,1766799052247,-659.71,0.00024795,2]
[399879016,1766799052259,-170.82,0.00024795,2]
[399879017,1766799052270,-170.82,0.00024795,2]
[399879018,1766799052281,-659.71,0.00024795,2]
[399879019,1766799052292,-170.82,0.00024795,2]
[399879020,1766799052302,-170.82,0.00024795,2]
[399879021,1766799052313,-170.82,0.00024795,2]
[399879022,1766799052324,-170.82,0.00024795,2]
[399879023,1766799052334,-170.82,0.00024795,2]
[399879024,1766799052344,-554.37,0.00024795,2]
[399879025,1766799052355,-150.0,0.00024795,2]
[399879026,1766799052366,-554.37,0.00024795,2]
[399879027,1766799052376,-150.0,0.00024795,2]
[399879028,1766799052387,-554.37,0.00024795,2]
[399879029,1766799052398,-658.18,0.00024795,2]
[399879030,1766799052408,-150.0,0.00024795,2]
[399879031,1766799052418,-150.0,0.00024795,2]
[399879032,1766799052429,-150.0,0.00024795,2]
[399879033,1766799052439,-554.37,0.00024795,2]
[399879034,1766799052450,-150.0,0.00024795,2]
[399879035,1766799052461,-465.05,0.00024795,2]
[399879036,1766799052471,-150.0,0.00024795,2]
[399879037,1766799052482,-465.05,0.00024795,2]
[399879038,1766799052492,-300.0,0.00024795,2]
[399879039,1766799052503,-465.05,0.00024795,2]
[399879040,1766799052514,-465.05,0.00024795,2]
[399879042,1766799052524,-465.05,0.00024795,2]
[399879043,1766799052535,-465.05,0.00024795,2]
[399879044,1766799052545,-465.05,0.00024795,2]
[399879045,1766799052556,-465.05,0.00024795,2]
[399879046,1766799052567,-465.05,0.00024795,2]
[399879047,1766799052577,-465.05,0.00024795,2]
[399879048,1766799052588,-465.05,0.00024795,2]
[399879049,1766799052599,-553.37,0.00024795,2]
[399879050,1766799052610,-463.61,0.00024795,2]
[399879051,1766799052621,-554.17,0.00024795,2]
[399879052,1766799052632,-170.76,0.00024795,2]
[399879053,1766799052643,-503.63097723,0.00024799,2]
[399879054,1766799052653,-594.41097414,0.00024799,2]
[399879055,1766799052664,-314.2126173,0.00024799,10]
[399879056,1766799052675,-61485.34487712,0.000248,2]
[399879057,1766799052686,-587.77940564,0.000248,2]
[399879058,1766799052696,-605536.918516,0.000248,3]
[399879059,1766799052707,-602107.913266,0.000249,3]
[399879060,1766799052717,-774.93837733,0.000249,2]
[399879061,1766799052728,-228.26447956,0.000249,2]
[399879062,1766799052739,-3589.76752165,0.000249,2]
[399879063,1766799052750,-554.37,0.00024904,2]
[399879064,1766799052761,-554.37,0.00024904,2]
[399879065,1766799052771,-554.37,0.00024904,2]
[399879066,1766799052782,-554.37,0.00024904,2]
[399879067,1766799052792,-554.37,0.00024904,2]
[399879069,1766799052802,-554.37,0.00024904,2]
[399879070,1766799052813,-554.37,0.00024904,2]
[399879071,1766799052823,-554.37,0.00024904,2]
[399879072,1766799052834,-554.37,0.00024904,2]
[399879073,1766799052844,-554.37,0.00024904,2]
[399879074,1766799052855,-554.37,0.00024904,2]
[399879075,1766799052866,-150.0,0.00024904,2]
[399879076,1766799052878,-150.0,0.00024904,2]
[399879077,1766799052889,-150.0,0.00024904,2]
[399879078,1766799052899,-150.0,0.00024904,2]
[399879079,1766799052911,-150.0,0.00024904,2]
[399879080,1766799052925,-150.0,0.00024904,2]
[399879081,1766799052936,-150.0,0.00024904,2]
[399879082,1766799052947,-150.0,0.00024904,2]
[399879083,1766799052959,-150.0,0.00024904,2]
[399879084,1766799052970,-150.0,0.00024904,2]
[399879085,1766799052981,-150.0,0.00024904,2]
[399879086,1766799052993,-150.0,0.00024904,2]
[399879087,1766799053003,-150.0,0.00024904,2]
[399879088,1766799053014,-150.0,0.00024904,2]
[399879089,1766799053024,-554.37,0.00024904,2]
[399879092,1766799053407,-150.0,0.00024904,2]
[399879093,1766799053434,-150.0,0.00024904,2]
[399879094,1766799053458,-554.37,0.00024904,2]
[399879095,1766799053468,-150.0,0.00024904,2]
[399879096,1766799053478,-554.37,0.00024904,2]
[399879097,1766799053488,-554.37,0.00024904,2]
[399879098,1766799053498,-150.0,0.00024904,2]
[399879099,1766799053507,-554.37,0.00024904,2]
[399879100,1766799053518,-150.0,0.00024904,2]
[399879101,1766799053529,-549.17,0.00024904,2]
[399879102,1766799053539,-216.0,0.0002493,30]
[399879103,1766799053550,-20212.92,0.00025,7]
[399879104,1766799053560,-1108.17656994,0.00025,2]
[399879105,1766799053569,-206.46439682,0.00025,2]
[399879106,1766799053579,-1775.74761321,0.00025,2]
[399879107,1766799053589,-338.24408877,0.00025,2]
[399879109,1766799053599,-360.0,0.00025,2]
[399879110,1766799053610,-607.83550624,0.00025,2]
[399879111,1766799053619,-3028.89992473,0.00025,2]
[399879112,1766799053629,-1059.08737187,0.00025,2]
[399879113,1766799053639,-166.45636142,0.00025,2]
[399879114,1766799053649,-150.0,0.00025,2]
[399879115,1766799053659,-450.0,0.00025,2]
[399879116,1766799053668,-1263.0,0.00025014,2]
[399879117,1766799053678,-432.0,0.00025014,2]
[399879118,1766799053687,-912.0,0.00025014,2]
[399879119,1766799053702,-1198.0,0.00025014,2]
[399879120,1766799053712,-1610.0,0.00025014,2]
[399879121,1766799053721,-378.43,0.000253,14]
[399879122,1766799053731,-352.0,0.00025373,7]
[399879123,1766799053741,-416.03518578,0.00025732,2]
[399879124,1766799053751,-597.69193387,0.0002599,2]
[399879125,1766799053761,-10582.2388745,0.00026,10]
[399879126,1766799053771,-215.44182459,0.00026,2]
[399879127,1766799053780,-162.16659158,0.00026,2]
[399879128,1766799053790,-150.0,0.00026,2]
[399879129,1766799053800,-710.7,0.00026019,2]
[399879130,1766799053810,-550.12,0.00026244,30]
[399879132,1766799053819,-5329.0,0.000263,5]
[399879133,1766799053829,-150.0,0.00026301,2]
[399879134,1766799053839,-150.0,0.00026301,2]
[399879135,1766799053849,-150.0,0.00026301,2]
[399879136,1766799053859,-150.0,0.00026301,2]
[399879137,1766799053869,-150.0,0.00026301,2]
[399879138,1766799053879,-172.44,0.00026301,2]
[399879139,1766799053888,-1000.0,0.00026667,7]
[399879140,1766799053899,-532.85,0.00026676,2]
[399879141,1766799053909,-250.0,0.00027,2]
[399879142,1766799053922,-1028.96102427,0.00027,2]
[399879143,1766799053932,-530.0,0.00027,2]
[399879144,1766799053944,-200.0,0.00027,2]
[399879145,1766799053954,-2000.0,0.00027,2]
[399879146,1766799053964,-500.0,0.00027,2]
[399879147,1766799053974,-2425.538832,0.0002701,2]
[399879148,1766799053984,-348.0,0.00027064,7]
[399879149,1766799053994,-431.42848765,0.00027101,2]
[399879150,1766799054004,-334.7077377,0.00027105,2]
[399879151,1766799054014,-150.0,0.00027369,2]
[399879152,1766799054025,-500.0,0.00027397,14]
[399879154,1766799054035,-500.0,0.00027397,14]
[399879155,1766799054045,-500.0,0.00027397,14]
[399879156,1766799054055,-500.0,0.00027397,14]
[399879157,1766799054066,-500.0,0.00027397,14]
[399879158,1766799054077,-500.0,0.00027397,14]
[399879160,1766799054088,-500.0,0.00027397,14]
[399879161,1766799054099,-500.0,0.00027397,14]
[399879162,1766799054108,-500.0,0.00027397,14]
[399879163,1766799054118,-500.0,0.00027397,14]
[399879164,1766799054129,-500.0,0.00027397,14]
[399879165,1766799054139,-151.0,0.00027397,2]
[399879166,1766799054150,-300.0,0.00027397,2]
[399879167,1766799054160,-516.69,0.00027397,2]
[399879168,1766799054170,-500.0,0.00027397,20]
[399879169,1766799054180,-998.38,0.00027397,2]
[399879170,1766799054190,-178.88329,0.00027397,7]
[399879171,1766799054199,-178.88329,0.00027397,7]
[399879172,1766799054209,-178.88329,0.00027397,7]
[399879173,1766799054219,-178.88329,0.00027397,7]
[399879174,1766799054229,-178.88329,0.00027397,7]
[399879175,1766799054239,-178.88329,0.00027397,7]
[399879176,1766799054249,-178.88329,0.00027397,7]
[399879177,1766799054259,-178.88329,0.00027397,7]
[399879178,1766799054269,-178.88329,0.00027397,7]
[399879179,1766799054279,-178.88329,0.00027397,7]
[399879181,1766799054288,-178.88329,0.00027397,7]
[399879182,1766799054297,-178.88329,0.00027397,7]
[399879183,1766799054307,-178.88329,0.00027397,7]
[399879184,1766799054316,-178.88329,0.00027397,7]
[399879185,1766799054325,-178.88329,0.00027397,7]
[399879186,1766799054335,-178.88329,0.00027397,7]
[399879187,1766799054344,-178.88329,0.00027397,7]
[399879188,1766799054354,-178.88329,0.00027397,7]
[399879189,1766799054363,-178.88329,0.00027397,7]
[399879190,1766799054373,-178.883282,0.00027397,7]
[399879191,1766799054383,-151.322257,0.00027397,7]
[399879192,1766799054392,-151.0,0.00027397,7]
[399879193,1766799054402,-252.092818,0.00027397,7]
[399879194,1766799054412,-1439.74,0.00027397,2]
[399879195,1766799054423,-177.621366,0.00027397,7]
[399879196,1766799054432,-160.33178779,0.00027397,5]
[399879197,1766799054442,-150.0,0.00027397,5]
[399879198,1766799054451,-166.66666667,0.00027418,30]
[399879199,1766799054462,-200.1174755,0.000275,2]
[399879200,1766799054471,-546.67543206,0.000275,2]
[399879201,1766799054481,-333.02146027,0.00027599,30]
[399879202,1766799054491,-9989.14,0.00027671,2]
[399879203,1766799054501,-2431.0,0.00027794,2]
[399879205,1766799054510,-250.0,0.00027945,5]
[399879206,1766799054519,-6006.949462,0.00028,60]
[399879207,1766799054529,-1263.0,0.00028014,2]
[399879208,1766799054539,-912.0,0.00028014,2]
[399879209,1766799054548,-1198.0,0.00028014,2]
[399879210,1766799054558,-1610.0,0.00028014,2]
[399879211,1766799054567,-2000.0,0.000281,2]
[399879212,1766799054577,-182.60296871,0.0002837,30]
[399879213,1766799054587,-710.7,0.00028414,2]
[399879214,1766799054597,-447.3913417,0.0002847,2]
[399879215,1766799054607,-350.0,0.00028493,5]
[399879216,1766799054617,-348.0,0.00028756,14]
[399879217,1766799054627,-151.0,0.00028766,2]
[399879218,1766799054637,-659.71,0.00028795,2]
[399879219,1766799054647,-659.71,0.00028795,2]
[399879220,1766799054657,-348.0,0.00028997,14]
[399879221,1766799054667,-550.0,0.00029,2]
[399879222,1766799054676,-2674.257766,0.00029,2]
[399879223,1766799054686,-306.43342563,0.00029041,5]
[399879224,1766799054695,-500.0,0.0002913,5]
[399879225,1766799054705,-500.0,0.0002913,5]
[399879226,1766799054715,-659.71,0.00029178,2]
[399879227,1766799054726,-659.71,0.00029178,2]
[399879228,1766799054735,-672.41,0.00029178,2]
[399879229,1766799054745,-178.57,0.00029315,2]
[399879231,1766799054755,-178.57,0.00029315,2]
[399879232,1766799054765,-178.57,0.00029315,2]
[399879233,1766799054775,-180.94,0.00029315,2]
[399879234,1766799054784,-302.53323335,0.00029366,2]
[399879235,1766799054794,-1500.0,0.000295,2]
[399879236,1766799054803,-1000.48879431,0.00029533,5]
[399879237,1766799054813,-1111.26282818,0.00029533,5]
[399879238,1766799054823,-1007.83267497,0.00029533,5]
[399879239,1766799054832,-1055.91614193,0.00029533,5]
[399879240,1766799054842,-1013.51170361,0.00029533,5]
[399879241,1766799054851,-1093.80725091,0.00029533,5]
[399879242,1766799054861,-1146.37683394,0.00029533,5]
[399879243,1766799054871,-1008.52143146,0.00029533,5]
[399879244,1766799054881,-1098.35632738,0.00029533,5]
[399879245,1766799054891,-1062.4582295,0.00029533,5]
[399879246,1766799054901,-1099.31010876,0.00029533,5]
[399879247,1766799054912,-1079.94063007,0.00029533,5]
[399879248,1766799054924,-1128.43484081,0.00029533,5]
[399879249,1766799054934,-1046.95973307,0.00029533,5]
[399879250,1766799054944,-1131.73382057,0.00029533,5]
[399879251,1766799054954,-1019.13328532,0.00029533,5]
[399879252,1766799054964,-1125.41369943,0.00029533,5]
[399879253,1766799054974,-1083.60723582,0.00029533,5]
[399879255,1766799054984,-1058.15295709,0.00029533,5]
[399879256,1766799054995,-1097.54961485,0.00029533,5]
[399879257,1766799055005,-1005.22607559,0.00029533,5]
[399879258,1766799055015,-1139.34165612,0.00029533,5]
[399879259,1766799055025,-1038.34970175,0.00029533,5]
[399879260,1766799055035,-1071.39635789,0.00029533,5]
[399879261,1766799055044,-1007.50837477,0.00029533,5]
[399879262,1766799055054,-1080.18884652,0.00029533,5]
[399879263,1766799055064,-1086.33498616,0.00029533,5]
[399879264,1766799055074,-1147.82206967,0.00029533,5]
[399879265,1766799055084,-1360.09151187,0.00029533,5]
[399879266,1766799055093,-20212.92,0.000296,7]
[399879267,1766799055104,-300.0,0.00029758,2]
[399879268,1766799055114,-300.0,0.00029774,2]
[399879269,1766799055124,-152.0,0.00029781,3]
[399879270,1766799055134,-463.94482134,0.00029839,2]
[399879271,1766799055143,-78504.32779609,0.000299,2]
[399879272,1766799055153,-236.04741616,0.0002999,2]
[399879273,1766799055163,-16377.62582345,0.0003,2]
[399879274,1766799055172,-4693.7536002,0.0003,2]
[399879275,1766799055182,-19772.96047276,0.0003,2]
[399879276,1766799055191,-1807.95923982,0.0003,2]
[399879277,1766799055201,-438.94707088,0.0003,2]
[399879278,1766799055211,-162.17087174,0.0003,2]
[399879279,1766799055221,-160.0,0.0003,8]
[399879280,1766799055230,-1000.0,0.0003,3]
[399879281,1766799055240,-814.79452425,0.0003,5]
[399879282,1766799055250,-150.0,0.0003,2]
[399879283,1766799055260,-288.29,0.0003,2]
[399879284,1766799055269,-1500.0,0.0003,2]
[399879286,1766799055279,-1067.96469067,0.0003013,2]
[399879287,1766799055288,-13779.89833269,0.0003013,2]
[399879288,1766799055298,-630.69433385,0.0003013,2]
[399879289,1766799055308,-5032.63542459,0.0003013,2]
[399879290,1766799055318,-200.63958368,0.0003013,2]
[399879291,1766799055328,-1217.996458,0.0003013,2]
[399879292,1766799055338,-7691.36156013,0.0003013,2]
[399879293,1766799055347,-1500.48516902,0.0003013,5]
[399879294,1766799055357,-151.0,0.00030135,2]
[399879295,1766799055366,-500.0,0.00030136,14]
[399879296,1766799055376,-500.0,0.00030136,14]
[399879297,1766799055386,-500.0,0.00030136,14]
[399879298,1766799055396,-500.0,0.00030136,14]
[399879299,1766799055406,-500.0,0.00030136,14]
[399879300,1766799055416,-500.0,0.00030136,14]
[399879301,1766799055426,-500.0,0.00030136,14]
[399879302,1766799055437,-500.0,0.00030136,14]
[399879303,1766799055447,-500.0,0.00030136,14]
[399879304,1766799055456,-500.0,0.00030136,14]
[399879305,1766799055466,-500.0,0.00030136,14]
[399879306,1766799055476,-602.4082898,0.00030136,14]
[399879307,1766799055486,-354.79277646,0.00030136,2]
[399879308,1766799055496,-217.81842758,0.00030136,2]
[399879309,1766799055506,-500.0,0.00030136,60]
[399879310,1766799055516,-500.0,0.00030136,60]
[399879311,1766799055525,-500.0,0.00030136,60]
[399879313,1766799055536,-500.0,0.00030136,60]
[399879314,1766799055545,-500.0,0.00030136,60]
[399879315,1766799055554,-500.0,0.00030136,60]
[399879316,1766799055564,-500.0,0.00030136,60]
[399879317,1766799055573,-500.0,0.00030136,60]
[399879318,1766799055582,-500.0,0.00030136,60]
[399879319,1766799055592,-500.0,0.00030136,60]
[399879320,1766799055601,-500.0,0.00030136,60]
[399879321,1766799055610,-500.0,0.00030136,60]
[399879322,1766799055620,-500.0,0.00030136,60]
[399879323,1766799055629,-500.0,0.00030136,60]
[399879324,1766799055639,-500.0,0.00030136,60]
[399879325,1766799055649,-500.0,0.00030136,60]
[399879326,1766799055659,-500.0,0.00030136,60]
[399879327,1766799055669,-500.0,0.00030136,60]
[399879328,1766799055681,-500.0,0.00030136,60]
[399879329,1766799055691,-500.0,0.00030136,60]
[399879330,1766799055701,-598.5082316,0.00030136,60]
[399879331,1766799055711,-300.0,0.00030136,2]
[399879332,1766799055721,-300.0,0.00030136,2]
[399879333,1766799055732,-300.0,0.00030136,2]
[399879334,1766799055751,-300.0,0.00030136,2]
[399879335,1766799055760,-300.0,0.00030136,2]
[399879336,1766799055770,-300.0,0.00030136,2]
[399879337,1766799055780,-300.0,0.00030136,2]
[399879339,1766799055798,-300.0,0.00030136,2]
[399879340,1766799055814,-300.0,0.00030136,2]
[399879341,1766799055823,-300.0,0.00030136,2]
[399879342,1766799055834,-300.0,0.00030136,2]
[399879343,1766799055843,-300.0,0.00030136,2]
[399879344,1766799055854,-301.03119037,0.00030136,2]
[399879345,1766799055864,-393.56250959,0.00030136,30]
[399879346,1766799055875,-552.08,0.00030136,14]
[399879347,1766799055885,-552.08,0.00030136,14]
[399879348,1766799055895,-552.08,0.00030136,14]
[399879349,1766799055905,-552.08,0.00030136,14]
[399879350,1766799055918,-552.08,0.00030136,14]
[399879351,1766799055928,-552.08,0.00030136,14]
[399879352,1766799055939,-552.08,0.00030136,14]
[399879353,1766799055950,-552.08,0.00030136,14]
[399879354,1766799055960,-552.08,0.00030136,14]
[399879355,1766799055970,-552.08,0.00030136,14]
[399879356,1766799055981,-552.08,0.00030136,14]
[399879357,1766799055991,-552.08,0.00030136,14]
[399879358,1766799056001,-552.08,0.00030136,14]
[399879359,1766799056011,-552.08,0.00030136,14]
[399879360,1766799056021,-552.08,0.00030136,14]
[399879361,1766799056031,-552.08,0.00030136,14]
[399879362,1766799056040,-552.08,0.00030136,14]
[399879363,1766799056050,-552.08,0.00030136,14]
[399879365,1766799056059,-552.08,0.00030136,14]
[399879366,1766799056228,-552.08,0.00030136,14]
[399879367,1766799056239,-552.08,0.00030136,14]
[399879368,1766799056248,-552.08,0.00030136,14]
[399879369,1766799056258,-552.08,0.00030136,14]
[399879370,1766799056268,-552.12380964,0.00030136,14]
[399879371,1766799056278,-1000.0,0.00030136,30]
[399879372,1766799056289,-206.25202629,0.00030136,2]
[399879373,1766799056299,-500.0,0.00030136,2]
[399879374,1766799056311,-500.0,0.00030136,2]
[399879375,1766799056321,-500.0,0.00030136,2]
[399879376,1766799056332,-500.0,0.00030136,2]
[399879377,1766799056343,-500.0,0.00030136,2]
[399879378,1766799056353,-500.0,0.00030136,2]
[399879379,1766799056364,-500.0,0.00030136,2]
[399879380,1766799056374,-500.0,0.00030136,2]
[399879381,1766799056384,-500.0,0.00030136,2]
[399879382,1766799056394,-500.0,0.00030136,2]
[399879383,1766799056404,-500.0,0.00030136,2]
[399879384,1766799056414,-500.0,0.00030136,2]
[399879385,1766799056424,-539.93503847,0.00030136,2]
[399879386,1766799056434,-500.0,0.00030136,2]
[399879387,1766799056445,-315.49075216,0.00030136,2]
[399879388,1766799056454,-500.0,0.00030136,2]
[399879389,1766799056464,-481.52157249,0.00030136,2]
[399879390,1766799056474,-554.37,0.00030137,2]
[399879391,1766799056483,-554.37,0.00030137,2]
[399879392,1766799056493,-554.37,0.00030137,2]
[399879393,1766799056503,-554.37,0.00030137,2]
[399879395,1766799056513,-170.82,0.00030137,2]
[399879396,1766799056523,-170.82,0.00030137,2]
[399879397,1766799056535,-659.71,0.00030137,2]
[399879398,1766799056544,-170.82,0.00030137,2]
[399879399,1766799056554,-659.71,0.00030137,2]
[399879400,1766799056563,-170.82,0.00030137,2]
[399879401,1766799056573,-659.71,0.00030137,2]
[399879402,1766799056583,-659.71,0.00030137,2]
[399879403,1766799056593,-170.82,0.00030137,2]
[399879404,1766799056602,-998.38,0.00030137,2]
[399879405,1766799056612,-367.6843243,0.00030137,120]
[399879406,1766799056622,-320.8,0.00030137,4]
[399879407,1766799056633,-156.88,0.00030137,4]
[399879408,1766799056643,-600.0,0.00030137,120]
[399879409,1766799056653,-600.0,0.00030137,120]
[399879410,1766799056663,-674.13,0.00030137,120]
[399879411,1766799056673,-200.0,0.00030137,2]
[399879412,1766799056683,-200.0,0.00030137,2]
[399879413,1766799056693,-200.0,0.00030438,2]
[399879414,1766799056703,-200.0,0.00030438,2]
[399879415,1766799056713,-348.0,0.00030447,14]
[399879416,1766799056723,-550.12,0.0003057,30]
[399879417,1766799056733,-200.0,0.00030743,2]
[399879418,1766799056742,-200.0,0.00030743,2]
[399879419,1766799056752,-2431.0,0.00030794,2]
[399879420,1766799056762,-710.7,0.00030809,2]
[399879421,1766799056772,-2598.13513599,0.0003084,2]
[399879422,1766799056781,-1100.0,0.00031,2]
[399879423,1766799056791,-2000.0,0.00031,15]
[399879424,1766799056802,-340.7462329,0.00031,5]
[399879425,1766799056811,-150.0,0.00031,4]
[399879426,1766799056821,-600.0,0.00031,2]
[399879427,1766799056830,-1263.0,0.00031014,2]
[399879428,1766799056839,-912.0,0.00031014,2]
[399879429,1766799056849,-1198.0,0.00031014,2]
[399879430,1766799056859,-1610.0,0.00031014,2]
[399879431,1766799056868,-200.0,0.0003105,2]
[399879432,1766799056879,-165.08,0.000312,30]
[399879433,1766799056889,-481.11077973,0.00031208,2]
[399879434,1766799056899,-200.0,0.00031361,2]
[399879435,1766799056908,-196.31225826,0.000315,2]
[399879436,1766799056922,-150.0,0.000315,2]
[399879437,1766799056932,-151.0,0.00031504,2]
[399879438,1766799056942,-193.7,0.00031507,120]
[399879439,1766799056953,-173.13,0.000317,7]
[399879440,1766799056963,-2000.0,0.000318,2]
[399879441,1766799056972,-162.95508875,0.00032,120]
[399879442,1766799056982,-200.0,0.00032,6]
[399879443,1766799056992,-315.36,0.000321,14]
[399879444,1766799057001,-152.85517104,0.0003216,2]
[399879445,1766799057011,-889.26601931,0.000323,2]
[399879446,1766799057021,-498.91187858,0.00032577,2]
[399879447,1766799057031,-150.0,0.00032658,2]
[399879448,1766799057041,-150.0,0.00032685,2]
[399879449,1766799057050,-223.60643053,0.00032713,2]
[399879450,1766799057060,-152.50445529,0.00032873,2]
[399879451,1766799057070,-500.0,0.00032876,120]
[399879452,1766799057079,-174.22779606,0.00032876,60]
[399879453,1766799057089,-342.87,0.00032877,2]
[399879454,1766799057099,-998.38,0.00032877,2]
[399879455,1766799057109,-251.65156675,0.00032877,2]
[399879456,1766799057119,-150.0,0.00032877,2]
[399879457,1766799057129,-20212.92,0.000329,14]
[399879458,1766799057139,-976.89,0.000329,14]
[399879459,1766799057149,-13664.89,0.000329,2]
[399879460,1766799057158,-774.93837733,0.000329,2]
[399879461,1766799057167,-194.15320871,0.000329,6]
[399879462,1766799057176,-228.26447956,0.000329,2]
[399879463,1766799057187,-3589.76752165,0.000329,2]
[399879464,1766799057197,-150.0,0.00032904,2]
[399879465,1766799057206,-216.0862134,0.00032932,2]
[399879466,1766799057215,-50000.0,0.00033,33]
[399879467,1766799057225,-460.83430741,0.00033,120]